bitfinex/quotes_ETHUSD_20250107
["timestamp","ask_amount","ask_price","bid_price","bid_amount"]
[1736281162561,0.0075,3383.3,3382.8,35.9111]
[1736281162761,0.0075,3383.3,3382.5,0.275]
[1736281162976,0.0075,3383.3,3382.7,0.0075]
[1736281163502,0.0075,3383.3,3383.0,2.95593]
[1736281163871,0.0075,3383.3,3383.2,2.96328]
[1736281164202,5.9075,3383.4,3383.3,6.79939]
[1736281165010,5.9075,3383.4,3383.3,6.29939]
[1736281165173,5.9075,3383.4,3383.3,9.7105794]
[1736281165731,5.9075,3383.4,3383.3,6.29939]
[1736281165902,5.915,3383.4,3383.3,6.29939]
[1736281166206,5.915,3383.4,3383.3,6.57439]
[1736281167593,5.915,3383.4,3383.3,41.57439]
[1736281167791,5.9075,3383.4,3383.3,45.54729712]
[1736281168106,0.8125,3385.0,3383.7,0.0075]
[1736281168291,0.8125,3385.0,3384.3,2.95473]
[1736281168609,0.8125,3385.4,3384.3,4.12443]
[1736281169105,2.95414,3385.1,3384.3,1.1697]
[1736281169316,0.8125,3385.4,3384.4,2.96222]
[1736281169526,3.76637,3385.4,3384.4,2.96222]
[1736281169714,3.76637,3385.4,3384.6,0.0075]
[1736281169916,0.8125,3385.4,3384.6,0.0075]
[1736281170122,0.8125,3385.4,3384.6,2.99158245]
[1736281170123,0.0075,3385.3,3384.6,2.99158245]
[1736281170328,0.0075,3385.3,3384.6,5.85277185]
[1736281170492,3.76609,3385.8,3384.6,2.8686894]
[1736281170690,2.9536,3385.7,3384.7,0.0075]
[1736281170901,0.8125,3385.8,3384.9,0.0075]
[1736281171190,0.8125,3385.8,3384.5,35.0]
[1736281171420,3.76602,3385.8,3384.7,2.95444]
[1736281171625,3.76602,3385.8,3384.9,0.0075]
[1736281172055,0.0075,3385.7,3384.9,0.03703975]
[1736281173309,0.0075,3385.7,3384.7,0.0075]
[1736281173483,0.0075,3385.3,3384.8,0.275]
[1736281174075,0.0075,3385.5,3384.8,0.275]
[1736281174563,0.0075,3385.5,3384.6,0.029542]
[1736281174774,0.0075,3385.5,3384.8,0.275]
[1736281175367,0.8125,3385.8,3384.9,0.0075]
[1736281175732,0.0075,3385.6,3384.9,0.0075]
[1736281176365,0.0075,3385.6,3384.9,0.03703972]
[1736281176752,0.8125,3385.8,3385.1,0.8914]
[1736281176921,0.8556,3386.3,3385.6,2.95368]
[1736281177131,0.8556,3386.9,3385.3,3.0]
[1736281177376,2.95265,3386.8,3385.7,2.95359]
[1736281177531,2.95265,3386.8,3385.8,0.274]
[1736281177739,0.8556,3386.9,3385.9,2.99041237]
[1736281177970,0.8556,3386.9,3385.9,3.88181237]
[1736281178450,3.80819,3386.9,3385.9,3.88181237]
[1736281179036,0.8556,3386.9,3386.1,0.0075]
[1736281179948,3.80789,3387.3,3386.1,0.44964886]
[1736281180154,0.8556,3387.3,3386.5,0.0075]
[1736281180380,2.95236,3387.2,3386.5,0.0075]
[1736281180911,0.8556,3387.3,3386.4,0.0075]
[1736281181404,2.95237,3387.1,3385.9,1.1654]
[1736281181553,0.0075,3386.1,3385.6,0.9432]
[1736281181755,0.0075,3386.0,3385.3,0.274]
[1736281181952,0.0075,3386.0,3384.5,0.9432]
[1736281182185,0.0075,3385.6,3384.6,0.274]
[1736281182367,0.0075,3385.3,3384.6,0.274]
[1736281182772,0.0075,3385.6,3384.8,3.0]
[1736281183008,0.0075,3385.6,3384.8,0.0075]
[1736281183189,0.0075,3385.2,3384.5,0.9432]
[1736281183389,2.96157,3385.2,3384.6,0.274]
[1736281183576,0.0075,3385.2,3384.6,0.274]
[1736281183906,0.0075,3385.3,3384.6,0.274]
[1736281184106,0.0075,3385.3,3384.7,0.03704191]
[1736281184273,0.0075,3385.3,3384.7,0.0075]
[1736281184768,0.0075,3385.4,3384.7,3.0075]
[1736281184968,0.0075,3385.4,3384.9,0.0075]
[1736281185406,0.0075,3385.8,3384.9,0.0075]
[1736281185614,0.0075,3385.6,3384.9,0.0075]
[1736281185816,0.0075,3385.6,3384.8,0.0075]
[1736281186110,0.0075,3385.9,3384.8,0.0075]
[1736281186260,0.0075,3385.9,3384.7,0.0075]
[1736281186459,0.0075,3385.5,3384.7,0.0075]
[1736281186900,2.95353,3385.8,3384.9,0.0075]
[1736281187105,0.0075,3385.7,3384.9,0.0075]
[1736281187486,0.0075,3385.4,3384.7,0.0075]
[1736281188215,0.0075,3385.2,3384.5,0.9432]
[1736281188485,2.95433,3384.9,3384.1,1.169]
[1736281188657,0.0075,3384.8,3384.1,1.169]
[1736281189286,0.0075,3385.1,3384.2,0.03704602]
[1736281189539,0.0075,3385.1,3384.4,0.0075]
[1736281190036,0.0075,3385.1,3384.2,5.9549]
[1736281190188,0.0075,3385.1,3384.3,0.0075]
[1736281190394,2.9535,3385.9,3384.9,0.9025]
[1736281190395,2.95342,3385.9,3384.9,0.9025]
[1736281190624,2.95342,3385.9,3384.9,0.93203956]
[1736281190791,2.95355,3385.8,3384.9,0.9025]
[1736281190988,0.0075,3385.5,3384.9,0.9025]
[1736281191432,0.0075,3385.3,3384.5,3.0]
[1736281192047,2.96109,3385.7,3384.4,0.895]
[1736281192209,2.96109,3385.7,3384.0,2.955]
[1736281192210,0.0075,3384.9,3384.0,2.955]
[1736281192391,0.0075,3384.9,3384.1,3.0075]
[1736281192936,0.0075,3385.1,3384.4,2.95472]
[1736281193086,0.0075,3385.1,3384.6,0.0075]
[1736281193292,0.0075,3385.4,3384.6,0.0075]
[1736281193693,0.0075,3385.4,3384.8,0.0075]
[1736281193937,2.9536,3385.7,3384.8,2.96188]
[1736281194389,0.9271,3386.0,3384.8,2.96188]
[1736281194390,0.0075,3385.6,3384.9,2.98382973]
[1736281194590,0.0075,3385.6,3385.0,0.274]
[1736281195428,2.95377,3385.6,3384.8,0.0075]
[1736281195608,0.0075,3385.7,3384.8,0.274]
[1736281195920,0.0075,3385.2,3384.7,0.0075]
[1736281196131,0.0075,3385.2,3384.6,0.0075]
[1736281196739,0.8871,3386.1,3384.8,0.0075]
[1736281196888,2.95363,3385.7,3384.8,0.0075]
[1736281197093,0.0075,3385.6,3384.8,0.03703982]
[1736281197287,0.0075,3385.6,3384.8,0.0075]
[1736281197540,0.0075,3385.9,3384.7,0.0075]
[1736281197711,0.0075,3385.3,3384.7,0.0075]
[1736281198194,0.0075,3385.5,3384.8,0.0075]
[1736281198395,2.95357,3385.8,3384.8,0.0075]
[1736281198599,2.95357,3385.8,3384.8,2.96185]
[1736281198794,0.0075,3385.7,3385.0,0.0075]
[1736281198994,0.8871,3386.1,3385.2,0.0075]
[1736281199231,2.9532,3386.2,3385.4,0.0075]
[1736281199397,2.9532,3386.2,3385.4,0.03703517]
[1736281199595,2.9532,3386.2,3385.4,0.0075]
[1736281199806,2.9532,3386.2,3385.2,3.0075]
[1736281200015,0.9136,3386.4,3385.2,3.997047]
[1736281200264,0.0075,3385.5,3384.4,3.42072495]
[1736281200444,0.0075,3385.5,3384.9,3.88811]
[1736281200610,0.0075,3385.5,3385.0,0.02953881]
[1736281200958,2.95345,3385.9,3385.1,0.0075]
[1736281201361,0.9136,3386.4,3385.1,0.54907432]
[1736281201507,0.0075,3386.1,3385.1,0.54907432]
[1736281201714,0.0075,3386.1,3385.3,0.0075]
[1736281202124,0.0075,3386.1,3385.4,0.888]
[1736281202441,0.0075,3386.1,3385.4,0.91753516]
[1736281202638,0.0075,3386.1,3385.4,1.26160081]
[1736281202810,0.0075,3386.1,3385.4,0.91753516]
[1736281203013,2.95306,3386.4,3385.5,0.0075]
[1736281203209,2.95306,3386.4,3385.7,0.0075]
[1736281203413,0.9045,3386.7,3384.9,0.8789]
[1736281203414,2.95362,3385.7,3384.9,0.8789]
[1736281203671,0.0075,3385.8,3384.6,2.71660331]
[1736281203813,2.95384,3385.5,3384.6,2.71660331]
[1736281204012,6.85796,3385.9,3384.9,1.40376817]
[1736281204013,2.96136,3385.4,3384.9,1.40376817]
[1736281204412,0.0075,3385.7,3384.9,1.40376817]
[1736281204615,3.8662,3385.0,3384.9,1.40376817]
[1736281205231,0.912,3385.0,3384.8,1.21665441]
[1736281205464,0.0075,3384.9,3384.2,1.40376817]
[1736281205659,0.0075,3384.9,3384.3,2.99179656]
[1736281205861,0.0075,3384.9,3384.3,0.03704656]
[1736281206166,0.0075,3385.0,3384.3,0.0075]
[1736281206310,2.96178,3385.0,3384.3,0.0075]
[1736281206514,0.0075,3384.7,3384.2,1.40376817]
[1736281206711,0.0075,3384.4,3383.9,1.21665441]
[1736281207162,2.96225,3384.4,3383.9,1.21665441]
[1736281207376,0.0075,3384.0,3383.9,1.21665441]
[1736281207742,0.0075,3384.2,3383.9,1.21665441]
[1736281207980,2.96258,3384.0,3383.9,1.21665441]
[1736281208361,0.9505,3384.2,3383.4,0.0075]
[1736281208588,0.9505,3384.2,3383.3,1.21665441]
[1736281208589,2.95511,3384.0,3383.3,1.21665441]
[1736281208740,0.0075,3383.9,3383.3,1.21665441]
[1736281209329,0.0075,3383.5,3383.3,1.21665441]
[1736281209629,2.9631,3383.4,3383.3,1.21665441]
[1736281209836,0.0075,3383.4,3382.9,1.40556162]
[1736281210549,0.0075,3383.1,3382.9,1.40556162]
[1736281211272,2.95501,3384.1,3383.1,0.9247]
[1736281212234,0.0075,3384.0,3383.1,0.9247]
[1736281212466,2.95551,3383.6,3382.9,3.72138333]
[1736281212630,0.0075,3383.5,3382.8,0.9247]
[1736281213328,0.0075,3383.7,3382.8,0.9247]
[1736281213773,0.0075,3383.7,3382.9,0.03705791]
[1736281213979,2.95503,3384.1,3383.1,2.95586]
[1736281214333,0.0075,3384.0,3383.1,2.95586]
[1736281214578,0.0075,3384.0,3383.1,0.388806]
[1736281214762,2.95519,3383.9,3383.1,0.388806]
[1736281214984,0.0075,3383.8,3383.1,0.388806]
[1736281215604,0.0075,3384.0,3383.1,3.388806]
[1736281215899,2.9626,3384.0,3383.1,3.388806]
[1736281216277,0.0075,3383.8,3383.1,0.388806]
[1736281216473,0.0075,3383.8,3383.0,0.274]
[1736281216474,2.96279,3383.8,3383.0,0.274]
[1736281216874,2.95486,3384.3,3383.0,0.274]
[1736281216875,0.0075,3383.9,3383.0,0.274]
[1736281217681,0.0075,3383.8,3383.0,0.274]
[1736281218277,0.0075,3383.4,3383.0,0.274]
[1736281218635,2.95578,3383.2,3382.8,0.274]
[1736281218765,0.0075,3383.1,3382.4,1.21665441]
[1736281219103,0.0075,3382.7,3382.4,1.21665441]
[1736281219253,2.95639,3382.5,3382.4,1.21665441]
[1736281219449,0.0075,3382.7,3382.4,1.21665441]
[1736281219650,2.95598,3383.0,3382.4,1.21665441]
[1736281219866,0.949,3383.3,3382.4,1.86439311]
[1736281220069,2.95546,3383.6,3382.6,0.0075]
[1736281220412,0.949,3383.8,3382.6,0.0075]
[1736281220413,0.0075,3383.7,3382.8,0.9606]
[1736281220711,2.96288,3383.7,3382.8,0.9606]
[1736281221207,0.0075,3383.7,3382.8,0.9606]
[1736281221507,2.96311,3383.4,3382.8,0.9606]
[1736281221907,3.9043,3383.8,3382.8,1.380447]
[1736281221908,0.0075,3383.5,3382.8,1.380447]
[1736281222110,0.0075,3383.5,3382.8,0.9606]
[1736281222420,3.42072495,3385.0,3382.9,3.42822495]
[1736281222588,3.85664,3384.4,3383.4,0.9677]
[1736281222795,2.95483,3384.3,3383.4,0.9677]
[1736281223088,0.0075,3384.1,3383.4,0.9677]
[1736281223619,0.9749,3385.1,3383.6,2.9554]
[1736281223804,3.92905,3385.1,3384.0,0.9378]
[1736281223991,2.95397,3385.3,3384.1,0.0075]
[1736281224179,0.9749,3385.4,3384.2,0.02954559]
[1736281224534,2.95367,3385.7,3384.6,3.92045]
[1736281224535,2.95362,3385.7,3384.6,3.92045]
[1736281224697,2.95362,3385.7,3384.6,0.9659]
[1736281224698,0.0075,3385.7,3384.6,0.9659]
[1736281224897,2.95359,3385.7,3384.6,0.9659]
[1736281225229,2.95385,3385.5,3384.6,0.9659]
[1736281225394,3.87945,3385.8,3384.6,0.9659]
[1736281226006,0.55,3385.7,3384.6,0.9659]
[1736281226188,2.95397,3385.3,3384.6,0.9659]
[1736281226792,0.0075,3385.2,3384.6,0.9659]
[1736281227194,0.0075,3385.2,3384.6,0.99544361]
[1736281227419,2.95363,3385.7,3384.6,3.94999361]
[1736281227722,0.0075,3385.6,3384.7,0.42239936]
[1736281227919,0.0075,3385.4,3384.6,0.9659]
[1736281228136,0.0075,3385.4,3384.6,0.99544258]
[1736281228285,0.0075,3385.4,3384.6,0.9659]
[1736281229422,0.0075,3384.9,3384.6,0.9659]
[1736281229729,0.0075,3384.9,3384.4,0.9706]
[1736281229940,0.0075,3384.9,3384.4,1.39424259]
[1736281230487,0.0075,3385.6,3384.4,1.39424259]
[1736281230696,2.95391,3385.4,3384.4,1.39424259]
[1736281230902,0.0075,3385.3,3384.4,4.37850655]
[1736281231224,0.0075,3385.3,3384.4,1.39424259]
[1736281231524,2.9546,3384.6,3384.4,0.9706]
[1736281231727,0.0075,3384.9,3383.9,0.9131]
[1736281231941,0.0075,3384.2,3383.9,0.9131]
[1736281232401,2.9545,3384.7,3383.9,0.9131]
[1736281232598,0.05817498,3384.6,3383.9,0.9131]
[1736281232804,0.0075,3384.6,3383.9,4.26498577]
[1736281233138,0.05067498,3384.5,3384.2,0.0075]
[1736281233293,0.0075,3384.4,3383.9,1.30984577]
[1736281233731,0.0075,3384.2,3384.0,0.0075]
[1736281234117,2.95399,3385.3,3383.9,1.30984577]
[1736281234118,0.0075,3385.2,3383.9,1.30984577]
[1736281234315,0.0075,3384.0,3383.9,1.1871]
[1736281234522,0.0075,3384.0,3383.9,0.9131]
[1736281234834,0.0075,3384.4,3383.5,2.11885441]
[1736281234995,0.0075,3384.2,3383.5,0.9022]
[1736281235328,2.9626,3384.0,3383.5,0.9022]
[1736281235528,2.95517,3383.9,3383.5,0.9022]
[1736281235731,2.95456,3384.6,3383.1,4.21665441]
[1736281235732,0.0075,3383.6,3383.1,2.11885441]
[1736281235902,0.0503679,3383.8,3383.1,2.78805311]
[1736281236102,2.95509,3384.0,3383.1,2.78805311]
[1736281236305,0.0075,3383.6,3383.1,1.5713987]
[1736281236801,0.0075,3384.1,3383.1,1.60095355]
[1736281237003,2.96267,3383.9,3383.1,0.9022]
[1736281237396,0.0075,3383.7,3383.1,0.9022]
[1736281237798,0.0075,3383.7,3383.1,1.1752]
[1736281237997,0.0075,3383.8,3383.1,1.1752]
[1736281238213,0.0075,3383.8,3383.2,0.02955485]
[1736281238414,0.0075,3383.8,3383.1,1.1752]
[1736281238795,0.0075,3383.6,3383.1,1.1752]
[1736281238995,0.0075,3383.6,3383.1,1.89127265]
[1736281239631,0.0075,3383.8,3383.1,1.89127265]
[1736281240332,0.0075,3383.6,3383.1,1.89127265]
[1736281241008,0.0075,3383.7,3383.1,0.9022]
[1736281241209,0.0075,3383.7,3382.7,0.9779]
[1736281241425,0.5575,3383.3,3382.4,1.21665441]
[1736281241738,2.96389,3382.5,3382.4,1.21665441]
[1736281242091,3.01386832,3382.5,3382.4,1.21665441]
[1736281242499,3.56386832,3382.5,3382.4,1.21665441]
[1736281242710,3.56386832,3382.5,3381.8,2.31449256]
[1736281242711,0.0075,3381.9,3381.1,1.48965441]
[1736281243041,0.0075,3381.7,3381.2,0.9428]
[1736281243535,2.95735,3381.4,3381.1,1.21665441]
[1736281243955,0.0075,3381.4,3381.1,1.21665441]
[1736281244099,0.0075,3381.4,3380.6,4.02140552]
[1736281244100,0.0075,3381.2,3380.6,2.15945441]
[1736281244445,0.0075,3381.0,3380.6,2.15945441]
[1736281244946,0.0075,3381.5,3380.6,2.15945441]
[1736281245152,0.0075,3381.5,3380.6,3.15811423]
[1736281245336,0.04634999,3381.4,3380.9,2.95771]
[1736281245513,0.0075,3381.3,3380.7,2.95793]
[1736281246048,3.5575,3382.0,3380.6,1.9118807]
[1736281246251,0.0075,3381.7,3380.8,2.95787]
[1736281246550,0.0075,3381.7,3381.0,2.95762]
[1736281246736,0.04507453,3381.6,3381.1,0.02957436]
[1736281247054,0.9499,3382.2,3381.1,0.02957436]
[1736281247055,0.0075,3382.1,3381.3,2.9574]
[1736281247264,0.04507453,3382.0,3381.2,0.91247187]
[1736281247465,0.8896,3382.6,3381.2,0.91247187]
[1736281247466,0.8896,3382.6,3381.4,2.95734]
[1736281247761,2.96407,3382.3,3381.3,0.66424719]
[1736281248057,0.55,3382.5,3381.3,0.66424719]
[1736281248240,0.0075,3382.3,3381.3,3.62166719]
[1736281248611,0.04507453,3382.2,3381.4,2.95734]
[1736281248861,0.04507453,3382.2,3381.6,0.0075]
[1736281249011,0.04507453,3382.2,3381.7,0.8829]
[1736281249358,0.0075,3382.3,3381.7,0.8829]
[1736281249557,0.0075,3382.3,3381.4,3.0]
[1736281249729,0.0075,3382.1,3381.4,3.0]
[1736281249927,0.0075,3382.1,3381.4,3.70777772]
[1736281250365,0.0075,3382.2,3381.3,1.54714719]
[1736281250667,0.0075,3382.0,3381.3,4.54714719]
[1736281250966,2.96438,3382.0,3381.3,0.8829]
[1736281251187,0.0075,3381.8,3381.1,0.273]
[1736281251320,2.96451,3381.8,3381.0,1.1982]
[1736281251515,0.0075,3381.6,3381.0,1.1982]
[1736281251747,0.0075,3381.6,3381.5,2.95726]
[1736281251945,0.9627,3382.5,3381.7,2.95709]
[1736281252221,0.0075,3382.3,3381.5,1.486078]
[1736281252762,0.0075,3382.1,3381.7,2.95706]
[1736281253160,0.0075,3382.7,3381.7,2.95706]
[1736281253361,0.0075,3382.7,3381.7,0.4443138]
[1736281253669,0.0075,3382.5,3381.6,2.95717]
[1736281253868,2.96392,3382.5,3381.8,0.273]
[1736281254032,0.0075,3382.3,3381.8,0.273]
[1736281254451,0.04462071,3382.2,3381.8,0.273]
[1736281254651,0.5575,3382.5,3381.8,0.273]
[1736281254851,0.0075,3382.3,3381.8,0.273]
[1736281255163,3.9627,3382.9,3381.3,0.273]
[1736281255317,0.0075,3382.1,3381.3,0.273]
[1736281255520,0.0075,3382.1,3381.4,0.0075]
[1736281255760,0.04486841,3382.0,3381.4,0.03706871]
[1736281255964,0.0075,3381.9,3381.5,1.94222537]
[1736281256283,0.9627,3382.9,3381.5,1.94222537]
[1736281256284,0.0075,3382.8,3381.8,2.957]
[1736281256492,0.0075,3382.6,3381.6,2.95715]
[1736281256778,0.0075,3382.6,3381.7,2.95708]
[1736281256985,0.04474832,3382.5,3381.7,2.95708]
[1736281257181,0.04474832,3382.5,3381.5,4.89944537]
[1736281257498,0.04474832,3382.5,3381.6,2.95715]
[1736281258045,0.04474832,3382.5,3381.7,2.95706]
[1736281258571,0.04474832,3382.5,3381.6,0.51798754]
[1736281258890,0.892,3382.4,3381.6,0.51798754]
[1736281259239,0.04361901,3382.3,3381.6,0.51798754]
[1736281259897,3.51417,3382.2,3381.3,1.2271]
[1736281260188,0.59361901,3382.3,3380.9,2.95778]
[1736281260189,0.0075,3381.7,3380.9,2.95778]
[1736281260572,0.0075,3381.5,3381.1,2.9576]
[1736281260742,0.0075,3381.5,3381.0,3.0]
[1736281260937,0.0075,3381.5,3381.1,0.595777]
[1736281261138,2.95692,3381.9,3381.1,0.595777]
[1736281261139,0.0075,3381.8,3381.1,0.595777]
[1736281261555,0.0075,3381.6,3381.0,2.95767]
[1736281261886,0.0075,3381.6,3381.2,2.9575]
[1736281262039,0.9227,3382.3,3381.3,0.0295721]
[1736281262245,0.9146,3382.6,3381.3,3.0295721]
[1736281262446,0.04318336,3382.5,3381.9,0.9743]
[1736281262646,2.95641,3382.5,3381.9,0.9743]
[1736281262874,0.9146,3382.6,3381.8,0.273]
[1736281263064,0.04328853,3382.4,3381.8,0.273]
[1736281263264,0.0075,3382.5,3381.8,0.273]
[1736281263644,0.0075,3382.3,3381.8,0.273]
[1736281264242,0.0075,3382.1,3381.8,0.273]
[1736281264418,0.0075,3381.9,3381.8,0.273]
[1736281264758,0.0075,3381.9,3381.2,2.9575]
[1736281264953,0.05103491,3381.9,3381.3,0.41312]
[1736281265259,0.0075,3382.2,3381.3,0.41312]
[1736281265559,0.0075,3382.0,3381.4,2.95733]
[1736281265723,0.04353491,3382.1,3381.6,0.0075]
[1736281265927,0.9146,3382.6,3381.8,2.95692]
[1736281266123,0.0075,3382.5,3381.8,2.95692]
[1736281266823,0.0075,3382.3,3381.8,2.95692]
[1736281267160,0.0075,3382.1,3381.9,0.393602]
[1736281267464,0.0075,3382.1,3382.0,2.95683]
[1736281267676,0.0075,3382.5,3381.9,0.393602]
[1736281267876,2.96394,3382.5,3381.7,0.9716]
[1736281268172,0.9146,3382.6,3381.3,3.92903]
[1736281268173,0.0075,3382.1,3381.3,3.92903]
[1736281268468,0.0075,3382.1,3381.4,2.95733]
[1736281268670,0.9146,3382.6,3381.4,2.95733]
[1736281268671,0.0075,3381.9,3381.4,2.95733]
[1736281269022,0.04367008,3381.8,3381.3,0.9716]
[1736281269222,0.0075,3381.7,3381.5,2.95723]
[1736281269875,0.9146,3382.6,3381.7,2.95707]
[1736281270223,0.0075,3382.5,3381.7,2.95707]
[1736281270458,0.0075,3382.5,3381.8,0.02956876]
[1736281270682,2.95591,3383.1,3381.8,0.02956876]
[1736281270857,0.9301,3383.0,3382.0,3.92843]
[1736281271063,2.95537,3383.7,3382.4,3.42072495]
[1736281271064,0.9301,3383.6,3382.4,3.42072495]
[1736281271318,0.9301,3384.4,3383.3,2.95567]
[1736281271432,2.95482,3384.3,3383.3,2.95567]
[1736281271634,0.0075,3384.2,3383.3,2.95567]
[1736281271824,3.88486,3384.4,3383.4,2.95558]
[1736281272028,3.0,3384.3,3383.3,2.95565]
[1736281272258,2.95482,3384.3,3383.3,2.95565]
[1736281272462,3.5575,3384.3,3383.3,2.95562]
[1736281272729,0.5575,3384.1,3383.1,0.272]
[1736281273120,0.0075,3383.7,3383.1,0.272]
[1736281273325,0.8936,3384.2,3383.2,2.95576]
[1736281273557,0.8936,3384.2,3383.3,3.88077]
[1736281273740,0.0075,3384.1,3383.3,0.9251]
[1736281273956,3.84852,3384.2,3383.3,0.9251]
[1736281274129,0.0075,3384.1,3383.3,0.9251]
[1736281274731,0.8936,3384.2,3383.6,2.95543]
[1736281274930,2.95419,3385.1,3383.4,0.0075]
[1736281274931,0.956,3384.7,3383.7,2.95533]
[1736281275154,0.956,3384.7,3383.8,2.95522]
[1736281275474,0.956,3384.7,3383.9,2.98464087]
[1736281275624,0.956,3384.7,3383.3,1.34333949]
[1736281275828,2.9549,3384.2,3383.4,0.272]
[1736281276029,2.9549,3384.2,3382.8,3.42072495]
[1736281276030,2.95511,3384.0,3382.9,3.91683]
[1736281276278,0.04378959,3384.1,3383.3,2.95569]
[1736281276458,0.0075,3384.3,3383.3,2.95569]
[1736281276832,0.0075,3384.1,3383.3,2.95569]
[1736281277031,0.0075,3384.1,3383.1,0.0075]
[1736281277337,0.04378959,3384.2,3383.3,2.95562]
[1736281277338,0.0075,3384.2,3383.3,2.95562]
[1736281277668,0.0075,3384.2,3383.5,2.95551]
[1736281277880,0.04508872,3384.1,3383.5,2.95551]
[1736281278230,0.0075,3384.0,3383.3,5.95568]
[1736281278537,0.0075,3384.0,3383.0,0.272]
[1736281278744,0.04513375,3383.9,3383.0,0.272]
[1736281278956,0.9448,3383.8,3383.0,0.272]
[1736281279197,0.0075,3383.7,3383.0,3.22795]
[1736281279407,0.05263375,3383.7,3383.0,3.22795]
[1736281279770,0.05263375,3383.7,3382.5,0.9551]
[1736281279771,0.0075,3383.5,3382.5,0.9551]
[1736281279971,0.0075,3383.5,3382.5,3.91147]
[1736281280296,3.50545,3383.6,3382.5,4.60805277]
[1736281280297,0.0075,3383.3,3382.5,4.60805277]
[1736281280471,0.0075,3383.3,3382.3,5.95654]
[1736281280672,0.0075,3383.1,3382.2,1.21665441]
[1736281281004,0.5575,3382.9,3382.2,1.21665441]
[1736281281198,0.0075,3382.6,3382.2,1.21665441]
[1736281281399,3.94156,3382.3,3382.2,1.21665441]
[1736281281784,3.94156,3382.3,3381.5,1.21665441]
[1736281281785,0.0075,3382.2,3381.5,1.21665441]
[1736281282099,0.0075,3381.9,3381.5,1.21665441]
[1736281282463,0.0075,3381.7,3381.5,1.21665441]
[1736281282682,0.0444656,3381.6,3381.5,1.21665441]
[1736281282929,0.0075,3381.6,3381.5,1.21665441]
[1736281283096,0.05011069,3381.6,3381.5,1.21665441]
[1736281283432,0.941,3382.3,3381.7,2.95703]
[1736281283727,0.941,3382.8,3381.9,2.95689]
[1736281283926,0.04067023,3382.2,3381.9,2.95689]
[1736281284115,0.941,3382.8,3382.0,3.279689]
[1736281284312,0.941,3382.8,3382.0,0.9347]
[1736281284497,0.04067023,3382.7,3382.0,0.9347]
[1736281284696,0.5575,3382.5,3381.2,2.95751]
[1736281285034,0.0075,3382.2,3381.3,3.0]
[1736281285196,0.0075,3382.2,3381.4,2.8611894]
[1736281285384,0.0075,3382.2,3381.2,35.0]
[1736281285583,2.96425,3382.1,3381.0,3.2297]
[1736281285786,3.00492023,3382.1,3381.0,3.2297]
[1736281286221,2.96442,3381.9,3381.0,3.272]
[1736281286793,0.5575,3381.9,3381.0,0.272]
[1736281286992,0.0075,3381.6,3381.0,0.272]
[1736281287226,0.5575,3381.6,3380.5,2.42345441]
[1736281287540,0.0075,3381.0,3380.5,2.18484211]
[1736281287841,0.0075,3381.0,3380.5,3.9681877]
[1736281287983,0.0075,3381.0,3380.5,0.9681877]
[1736281288185,0.0075,3380.8,3380.2,2.98794102]
[1736281288736,0.8977,3381.1,3380.2,0.02958102]
[1736281288888,0.8977,3381.1,3380.4,2.95817]
[1736281289252,0.04817023,3381.0,3380.2,0.02958102]
[1736281289403,0.04067023,3381.0,3380.6,0.0075]
[1736281289597,0.8977,3381.9,3380.7,0.34282249]
[1736281289899,0.04067023,3381.8,3380.8,35.02957462]
[1736281290230,0.04067023,3381.8,3380.9,0.272]
[1736281290437,0.0075,3381.7,3380.9,3.25934462]
[1736281290585,0.0075,3381.7,3380.9,3.22977]
[1736281290784,0.0075,3381.5,3381.0,35.5627458]
[1736281291009,0.0075,3381.5,3381.1,2.95759]
[1736281291284,0.0075,3381.5,3381.0,35.5627458]
[1736281291630,0.0075,3381.8,3381.0,35.5627458]
[1736281291789,0.8977,3381.9,3381.1,3.84366399]
[1736281292128,0.8977,3381.9,3381.1,3.8140894]
[1736281292330,0.0075,3381.8,3381.1,3.8140894]
[1736281292627,0.0075,3381.8,3381.0,37.95762]
[1736281293207,0.0075,3381.8,3380.9,0.272]
[1736281293410,3.85468,3381.9,3380.5,1.21665441]
[1736281293411,0.0075,3381.2,3380.5,1.21665441]
[1736281293877,2.96511,3381.2,3380.4,4.21665441]
[1736281294027,0.0075,3381.2,3380.4,4.21665441]
[1736281294239,0.0075,3381.0,3380.4,1.21665441]
[1736281294397,2.96528,3381.0,3380.4,1.21665441]
[1736281294596,0.0075,3380.6,3380.4,1.21665441]
[1736281294797,0.0075,3380.5,3380.4,1.21665441]
[1736281295145,0.0075,3380.4,3380.0,0.02]
[1736281295550,0.0075,3380.4,3380.0,2.97856]
[1736281295720,0.03957978,3380.3,3380.0,0.02]
[1736281295916,0.0075,3380.2,3380.0,0.02]
[1736281296443,0.04707978,3380.1,3380.0,0.02]
[1736281296803,0.04707978,3380.1,3380.0,2.97857]
[1736281297001,0.0075,3380.1,3380.0,6.00815149]
[1736281297246,0.0075,3380.1,3380.0,7.21733564]
[1736281297848,0.0075,3380.1,3380.0,0.02]
[1736281298423,0.04683903,3380.1,3380.0,0.02]
[1736281298612,0.0075,3380.1,3380.0,0.02]
[1736281298812,0.04683903,3380.1,3380.0,0.02]
[1736281299307,0.0075,3380.1,3380.0,2.97857]
[1736281299516,0.0075,3380.1,3380.0,3.27938554]
[1736281299709,0.0075,3380.1,3380.0,0.32081554]
[1736281300126,0.0075,3380.1,3380.0,3.27938554]
[1736281300547,0.8792,3380.9,3380.1,0.9296]
[1736281300712,0.8792,3380.9,3380.2,0.02958038]
[1736281300911,0.04678635,3380.8,3380.3,0.42385659]
[1736281301213,0.8792,3381.3,3380.5,2.96564]